fUST/lending_fUST_20250115
["ID","MTS","AMOUNT","RATE_DAILY","PERIOD"]
[349048939,1736951449455,-500.0,0.00020209,3]
[349048940,1736951449466,-500.0,0.00020209,3]
[349048941,1736951449475,-868.16,0.00020209,3]
[349048942,1736951449486,-500.0,0.00020209,3]
[349048943,1736951449496,-500.0,0.00020209,3]
[349048944,1736951449506,-3711.32,0.00020209,3]
[349048945,1736951449516,-2380.44,0.00020209,3]
[349048946,1736951449525,-500.0,0.00020209,3]
[349048947,1736951449535,-295.45357381,0.00020211,3]
[349048948,1736951449545,-500.0,0.00020211,3]
[349048949,1736951449555,-500.0,0.00020211,3]
[349048950,1736951449565,-500.0,0.00020211,3]
[349048951,1736951449576,-500.0,0.00020211,3]
[349048952,1736951449586,-500.0,0.00020211,3]
[349048953,1736951449599,-500.0,0.00020211,3]
[349048954,1736951449615,-500.0,0.00020211,3]
[349048955,1736951449628,-500.0,0.00020211,3]
[349048956,1736951449649,-500.0,0.00020211,3]
[349048957,1736951449670,-500.0,0.00020211,3]
[349048958,1736951449680,-16836.98,0.00020211,3]
[349048959,1736951449691,-372.94,0.00020211,3]
[349048960,1736951449701,-500.0,0.00020211,3]
[349048961,1736951449712,-500.0,0.00020211,3]
[349048962,1736951449722,-501.01325946,0.00020238,3]
[349048963,1736951449732,-500.0,0.00020238,3]
[349048964,1736951449741,-500.0,0.00020238,3]
[349048965,1736951449751,-500.0,0.00020238,3]
[349048966,1736951449761,-500.0,0.00020238,3]
[349048967,1736951449771,-500.0,0.00020238,3]
[349048968,1736951449781,-500.0,0.00020238,3]
[349048969,1736951449790,-500.0,0.00020238,3]
[349048970,1736951449800,-154.03,0.00020238,2]
[349048971,1736951449813,-1271.98,0.00020272,3]
[349048972,1736951449824,-500.0,0.00020272,3]
[349048973,1736951449836,-500.0,0.00020272,3]
[349048974,1736951449852,-509.62451974,0.00020272,3]
[349048975,1736951449866,-2621.28,0.00020272,3]
[349048976,1736951449876,-500.0,0.00020272,3]
[349048977,1736951449886,-500.0,0.00020272,3]
[349048978,1736951449896,-500.0,0.00020272,3]
[349048979,1736951449906,-752.65,0.00020272,3]
[349048980,1736951449915,-697.04,0.00020272,3]
[349048981,1736951449926,-500.0,0.00020272,3]
[349048982,1736951449936,-738.61,0.00020272,3]
[349048983,1736951449946,-500.0,0.00020272,3]
[349048984,1736951449956,-500.0,0.00020272,3]
[349048985,1736951449967,-500.0,0.00020272,3]
[349048986,1736951449977,-574.0,0.00020272,3]
[349048987,1736951449986,-500.0,0.00020272,3]
[349048988,1736951449995,-450.31,0.00020272,2]
[349048989,1736951450005,-500.0,0.00020272,3]
[349048990,1736951450015,-500.0,0.00020272,3]
[349048991,1736951450025,-500.0,0.00020272,3]
[349048992,1736951450035,-241.16940252,0.00020272,3]
[349048993,1736951450044,-500.0,0.00020272,3]
[349048994,1736951450054,-500.0,0.00020272,3]
[349048995,1736951450064,-500.0,0.00020272,3]
[349048996,1736951450074,-500.0,0.00020272,3]
[349048997,1736951450083,-299.38341343,0.00020272,3]
[349048998,1736951450093,-500.0,0.00020272,3]
[349048999,1736951450104,-500.0,0.00020273,2]
[349049000,1736951450115,-500.430706,0.00020273,2]
[349049001,1736951450124,-500.0,0.00020273,2]
[349049002,1736951450133,-500.0,0.00020273,2]
[349049003,1736951450143,-501.97186633,0.00020273,2]
[349049004,1736951450152,-500.0,0.00020274,3]
[349049005,1736951450162,-223.29780565,0.00020274,3]
[349049006,1736951450172,-500.0,0.00020274,3]
[349049007,1736951450181,-500.0,0.00020274,3]
[349049008,1736951450191,-500.0,0.00020274,3]
[349049009,1736951450200,-510.95966359,0.00020274,3]
[349049010,1736951450210,-500.0,0.00020274,3]
[349049011,1736951450221,-514.363424,0.00020274,3]
[349049012,1736951450230,-500.0,0.00020274,3]
[349049013,1736951450240,-407.10005717,0.00020274,3]
[349049014,1736951450250,-429.2503107,0.00020274,3]
[349049015,1736951450260,-300.17761398,0.00020274,3]
[349049016,1736951450270,-500.0,0.00020274,3]
[349049017,1736951450279,-644.80892709,0.00020274,3]
[349049018,1736951450288,-500.0,0.00020274,3]
[349049019,1736951450298,-500.0,0.00020274,3]
[349049020,1736951450308,-500.0,0.00020274,3]
[349049021,1736951450317,-500.0,0.00020274,3]
[349049022,1736951450327,-500.0,0.00020274,3]
[349049023,1736951450337,-519.65187292,0.00020274,3]
[349049024,1736951450346,-205.2341252,0.00020274,3]
[349049025,1736951450359,-500.0,0.00020274,3]
[349049026,1736951450430,-500.0,0.00020274,3]
[349049027,1736951450440,-500.0,0.00020274,2]
[349049028,1736951450451,-500.0,0.00020274,3]
[349049029,1736951450461,-500.0,0.00020274,3]
[349049030,1736951450470,-500.0,0.00020274,3]
[349049031,1736951450479,-500.0,0.00020274,3]
[349049032,1736951450488,-500.0,0.00020274,3]
[349049033,1736951450498,-500.0,0.00020274,3]
[349049034,1736951450508,-500.0,0.00020274,3]
[349049035,1736951450518,-501.90451538,0.00020274,3]
[349049036,1736951450528,-500.0,0.00020274,3]
[349049037,1736951450537,-500.0,0.00020274,3]
[349049038,1736951450546,-500.0,0.00020274,3]
[349049039,1736951450555,-500.0,0.00020274,3]
[349049040,1736951450564,-500.0,0.00020274,3]
[349049041,1736951450574,-572.9039986,0.00020274,3]
[349049042,1736951450585,-500.0,0.00020274,3]
[349049043,1736951450595,-500.0,0.00020274,3]
[349049044,1736951450608,-500.0,0.00020274,3]
[349049045,1736951450618,-199.1716415,0.00020274,3]
[349049046,1736951450628,-500.0,0.00020274,3]
[349049047,1736951450639,-500.0,0.00020274,3]
[349049048,1736951450649,-500.0,0.00020274,3]
[349049049,1736951450658,-500.0,0.00020274,3]
[349049050,1736951450667,-437.65758724,0.00020274,3]
[349049051,1736951450678,-500.0,0.00020274,3]
[349049052,1736951450688,-502.47932697,0.00020274,3]
[349049053,1736951450698,-500.40839618,0.00020274,3]
[349049054,1736951450708,-500.0,0.00020274,3]
[349049055,1736951450718,-500.0,0.00020274,3]
[349049056,1736951450728,-500.0,0.00020274,3]
[349049057,1736951450737,-502.97928665,0.00020274,3]
[349049058,1736951450748,-500.0,0.00020274,3]
[349049059,1736951450757,-500.0,0.00020274,3]
[349049060,1736951450767,-500.0,0.00020274,3]
[349049061,1736951450777,-500.0,0.00020274,3]
[349049062,1736951450787,-500.0,0.00020274,3]
[349049063,1736951450798,-500.0,0.00020274,3]
[349049064,1736951450808,-500.0,0.00020274,3]
[349049065,1736951450818,-500.0,0.00020274,3]
[349049066,1736951450828,-500.0,0.00020274,3]
[349049067,1736951450838,-500.0,0.00020274,3]
[349049068,1736951450847,-500.0,0.00020274,3]
[349049069,1736951450862,-500.0,0.00020274,3]
[349049070,1736951450882,-511.62653837,0.00020274,3]
[349049071,1736951450899,-500.0,0.00020274,3]
[349049072,1736951450920,-210.99964914,0.00020274,3]
[349049073,1736951450939,-500.0,0.00020274,3]
[349049074,1736951450956,-500.0,0.00020274,3]
[349049075,1736951450974,-500.0,0.00020274,3]
[349049076,1736951450989,-500.0,0.00020274,3]
[349049077,1736951451006,-500.0,0.00020274,3]
[349049078,1736951451026,-500.0,0.00020274,3]
[349049079,1736951451044,-500.0,0.00020274,3]
[349049080,1736951451059,-532.2730238,0.00020274,3]
[349049081,1736951451077,-500.0,0.00020274,3]
[349049082,1736951451095,-500.0,0.00020274,3]
[349049083,1736951451116,-500.0,0.00020274,3]
[349049084,1736951451130,-490.0,0.00020274,3]
[349049085,1736951451145,-536.45326028,0.00020274,3]
[349049086,1736951451160,-500.0,0.00020274,3]
[349049087,1736951451175,-500.0,0.00020274,3]
[349049088,1736951451190,-500.0,0.00020274,3]
[349049089,1736951451204,-500.0,0.00020274,3]
[349049090,1736951451219,-500.0,0.00020274,3]
[349049091,1736951451234,-500.0,0.00020274,3]
[349049092,1736951451249,-2038.54,0.000203,2]
[349049093,1736951451264,-151.0,0.000203,4]
[349049094,1736951451278,-151.0,0.000203,4]
[349049095,1736951451292,-151.0,0.000203,3]
[349049096,1736951451306,-500.0,0.00020306,3]
[349049097,1736951451321,-500.0,0.00020306,3]
[349049098,1736951451336,-500.0,0.00020306,3]
[349049099,1736951451351,-342.48,0.00020306,3]
[349049100,1736951451372,-500.0,0.00020306,3]
[349049101,1736951451386,-613.99,0.00020306,3]
[349049102,1736951451396,-500.0,0.00020306,3]
[349049103,1736951451406,-500.0,0.00020306,3]
[349049104,1736951451416,-500.0,0.00020323,3]
[349049105,1736951451427,-413.99996088,0.00020323,3]
[349049106,1736951451437,-702.65,0.00020323,3]
[349049107,1736951451447,-420.0,0.00020324,2]
[349049108,1736951451459,-500.0,0.00020346,3]
[349049109,1736951451470,-1818.62,0.00020346,3]
[349049110,1736951451480,-500.0,0.00020346,3]
[349049111,1736951451490,-1215.74,0.00020346,3]
[349049112,1736951451637,-3079.09,0.00020346,3]
[349049113,1736951451649,-500.0,0.00020346,3]
[349049114,1736951451660,-500.0,0.00020346,3]
[349049115,1736951451670,-500.0,0.00020346,3]
[349049116,1736951451680,-500.0,0.00020346,3]
[349049117,1736951451690,-500.0,0.00020346,3]
[349049118,1736951451700,-868.16,0.00020346,3]
[349049119,1736951451710,-500.0,0.00020346,3]
[349049120,1736951451721,-500.0,0.00020346,3]
[349049121,1736951451731,-151.0,0.00020346,2]
[349049122,1736951451741,-3711.32,0.00020346,3]
[349049123,1736951451751,-151.0,0.00020346,2]
[349049124,1736951451761,-151.0,0.00020346,2]
[349049125,1736951451770,-151.0,0.00020346,2]
[349049126,1736951451780,-2380.44,0.00020346,3]
[349049127,1736951451789,-151.0,0.00020346,2]
[349049128,1736951451799,-151.0,0.00020346,2]
[349049129,1736951451809,-500.0,0.00020348,3]
[349049130,1736951451819,-500.0,0.00020348,3]
[349049131,1736951451829,-500.0,0.00020348,3]
[349049132,1736951451839,-500.0,0.00020348,3]
[349049133,1736951451849,-500.0,0.00020348,3]
[349049134,1736951451861,-500.0,0.00020348,3]
[349049135,1736951451871,-500.0,0.00020348,3]
[349049136,1736951451882,-16836.98,0.00020348,3]
[349049137,1736951451892,-500.0,0.00020375,3]
[349049138,1736951451902,-500.0,0.00020375,3]
[349049139,1736951451913,-500.0,0.00020375,3]
[349049140,1736951451923,-500.0,0.00020375,3]
[349049141,1736951451933,-500.0,0.00020375,3]
[349049142,1736951451943,-151.0,0.000204,4]
[349049143,1736951451953,-151.0,0.000204,4]
[349049144,1736951451963,-1271.98,0.00020409,3]
[349049145,1736951451973,-500.0,0.00020409,3]
[349049146,1736951451983,-2621.28,0.00020409,3]
[349049147,1736951451994,-500.0,0.00020409,3]
[349049148,1736951452004,-500.0,0.00020409,3]
[349049149,1736951452014,-500.0,0.00020409,3]
[349049150,1736951452024,-752.65,0.00020409,3]
[349049151,1736951452033,-697.04,0.00020409,3]
[349049152,1736951452043,-500.0,0.00020409,3]
[349049153,1736951452053,-738.61,0.00020409,3]
[349049154,1736951452065,-500.0,0.00020409,3]
[349049155,1736951452075,-533.55997556,0.00020409,3]
[349049156,1736951452086,-500.0,0.00020409,3]
[349049157,1736951452095,-574.0,0.00020409,3]
[349049158,1736951452106,-500.0,0.00020409,3]
[349049159,1736951452117,-230.58984,0.00020409,3]
[349049160,1736951452127,-500.0,0.00020409,3]
[349049161,1736951452136,-426.50116999,0.00020409,3]
[349049162,1736951452146,-500.0,0.00020409,3]
[349049163,1736951452156,-500.0,0.00020409,3]
[349049164,1736951452166,-500.0,0.00020409,3]
[349049165,1736951452175,-534.69207468,0.00020411,3]
[349049166,1736951452185,-500.0,0.00020411,3]
[349049167,1736951452195,-500.0,0.00020411,3]
[349049168,1736951452206,-500.0,0.00020411,3]
[349049169,1736951452215,-523.56648399,0.00020411,3]
[349049170,1736951452226,-500.0,0.00020411,3]
[349049171,1736951452236,-500.0,0.00020411,3]
[349049172,1736951452247,-500.0,0.00020411,2]
[349049173,1736951452257,-500.0,0.00020411,3]
[349049174,1736951452266,-500.0,0.00020411,3]
[349049175,1736951452275,-500.0,0.00020411,3]
[349049176,1736951452285,-500.0,0.00020411,3]
[349049177,1736951452295,-500.0,0.00020411,3]
[349049178,1736951452305,-500.0,0.00020411,3]
[349049179,1736951452315,-500.0,0.00020411,3]
[349049180,1736951452324,-500.0,0.00020411,3]
[349049181,1736951452333,-500.0,0.00020411,3]
[349049182,1736951452343,-559.48629891,0.00020411,3]
[349049183,1736951452353,-500.0,0.00020411,3]
[349049184,1736951452373,-500.0,0.00020411,3]
[349049185,1736951452383,-120.80185688,0.00020411,3]
[349049186,1736951452430,-379.19814312,0.00020411,3]
[349049187,1736951452441,-500.0,0.00020411,3]
[349049188,1736951452451,-500.0,0.00020411,3]
[349049189,1736951452462,-199.3622669,0.00020411,3]
[349049190,1736951452478,-300.6377331,0.00020411,3]
[349049191,1736951452489,-500.0,0.00020411,3]
[349049192,1736951452499,-500.0,0.00020411,3]
[349049193,1736951452509,-500.0,0.00020411,3]
[349049194,1736951452518,-500.0,0.00020411,3]
[349049195,1736951452528,-500.0,0.00020411,3]
[349049196,1736951452537,-500.0,0.00020411,3]
[349049197,1736951452547,-500.0,0.00020411,3]
[349049198,1736951452557,-500.0,0.00020411,3]
[349049199,1736951452567,-187.01735348,0.00020411,3]
[349049200,1736951452578,-500.0,0.00020411,3]
[349049201,1736951452588,-500.0,0.00020411,3]
[349049202,1736951452598,-500.0,0.00020411,3]
[349049203,1736951452612,-500.0,0.00020411,3]
[349049204,1736951452622,-500.0,0.00020411,3]
[349049205,1736951452631,-500.0,0.00020411,3]
[349049206,1736951452642,-500.0,0.00020411,3]
[349049207,1736951452652,-511.33342493,0.00020411,3]
[349049208,1736951452662,-629.69658223,0.00020411,3]
[349049209,1736951452672,-500.0,0.00020411,3]
[349049210,1736951452682,-500.0,0.00020411,3]
[349049211,1736951452692,-500.0,0.00020411,3]
[349049212,1736951452702,-502.93336818,0.00020411,3]
[349049213,1736951452712,-201.60128324,0.00020411,3]
[349049214,1736951452723,-500.0,0.00020411,3]
[349049215,1736951452733,-500.0,0.00020411,3]
[349049216,1736951452742,-500.0,0.00020411,3]
[349049217,1736951452752,-500.0,0.00020411,3]
[349049218,1736951452763,-498.03574134,0.00020411,3]
[349049219,1736951452772,-257.13421959,0.00020421,2]
[349049220,1736951452782,-500.0,0.00020443,3]
[349049221,1736951452793,-500.0,0.00020443,3]
[349049222,1736951452803,-500.0,0.00020443,3]
[349049223,1736951452813,-500.0,0.00020443,3]
[349049224,1736951452822,-613.99,0.00020443,3]
[349049225,1736951452832,-500.0,0.00020443,3]
[349049226,1736951452841,-500.0,0.00020443,3]
[349049227,1736951452850,-151.0,0.00020443,2]
[349049228,1736951452863,-151.0,0.00020443,2]
[349049229,1736951452873,-151.0,0.00020443,2]
[349049230,1736951452883,-151.0,0.00020443,2]
[349049231,1736951452893,-191.653709,0.00020443,2]
[349049232,1736951452903,-459.594402,0.00020443,2]
[349049233,1736951452913,-459.594402,0.00020443,2]
[349049234,1736951452923,-151.0,0.00020443,2]
[349049235,1736951452932,-151.495035,0.00020443,2]
[349049236,1736951452942,-151.0,0.00020443,2]
[349049237,1736951452951,-151.0,0.00020443,2]
[349049238,1736951452961,-151.0,0.00020443,2]
[349049239,1736951452971,-3099.0,0.00020452,2]
[349049240,1736951452980,-500.0,0.0002046,3]
[349049241,1736951452990,-702.65,0.0002046,3]
[349049242,1736951452999,-500.0,0.00020483,3]
[349049243,1736951453010,-1818.62,0.00020483,3]
[349049244,1736951453020,-500.0,0.00020483,3]
[349049245,1736951453030,-1215.74,0.00020483,3]
[349049246,1736951453040,-3079.09,0.00020483,3]
[349049247,1736951453050,-500.0,0.00020483,3]
[349049248,1736951453060,-500.0,0.00020483,3]
[349049249,1736951453069,-500.0,0.00020483,3]
[349049250,1736951453079,-500.0,0.00020483,3]
[349049251,1736951453089,-500.0,0.00020483,3]
[349049252,1736951453099,-868.16,0.00020483,3]
[349049253,1736951453111,-500.0,0.00020483,3]
[349049254,1736951453121,-500.0,0.00020483,3]
[349049255,1736951453131,-3711.32,0.00020483,3]
[349049256,1736951453142,-2380.44,0.00020483,3]
[349049257,1736951453151,-500.0,0.00020485,3]
[349049258,1736951453160,-500.0,0.00020485,3]
[349049259,1736951453171,-500.0,0.00020485,3]
[349049260,1736951453181,-500.0,0.00020485,3]
[349049261,1736951453191,-500.0,0.00020485,3]
[349049262,1736951453201,-500.0,0.00020485,3]
[349049263,1736951453212,-500.0,0.00020485,3]
[349049264,1736951453222,-16836.98,0.00020485,3]
[349049265,1736951453232,-151.0,0.000205,3]
[349049266,1736951453242,-151.0,0.000205,4]
[349049267,1736951453252,-500.0,0.00020512,3]
[349049268,1736951453262,-500.0,0.00020512,3]
[349049269,1736951453272,-500.0,0.00020512,3]
[349049270,1736951453282,-151.0,0.00020512,2]
[349049271,1736951453292,-164.870528,0.00020512,2]
[349049272,1736951453302,-164.870528,0.00020512,2]
[349049273,1736951453312,-151.0,0.00020512,2]
[349049274,1736951453322,-179.548681,0.00020521,2]
[349049275,1736951453332,-1000.0,0.00020521,2]
[349049276,1736951453342,-1271.98,0.00020546,3]
[349049277,1736951453351,-500.0,0.00020546,3]
[349049278,1736951453363,-2621.28,0.00020546,3]
[349049279,1736951453379,-500.0,0.00020546,3]
[349049280,1736951453389,-500.0,0.00020546,3]
[349049281,1736951453399,-500.0,0.00020546,3]
[349049282,1736951453411,-752.65,0.00020546,3]
[349049283,1736951453421,-697.04,0.00020546,3]
[349049284,1736951453431,-500.0,0.00020546,3]
[349049285,1736951453441,-738.61,0.00020546,3]
[349049286,1736951453451,-500.0,0.00020546,3]
[349049287,1736951453461,-500.0,0.00020546,3]
[349049288,1736951453472,-574.0,0.00020546,3]
[349049289,1736951453483,-500.0,0.00020546,3]
[349049290,1736951453494,-500.0,0.00020546,3]
[349049291,1736951453503,-500.0,0.00020546,3]
[349049292,1736951453513,-151.0,0.00020548,2]
[349049293,1736951453523,-500.0,0.00020548,3]
[349049294,1736951453533,-635.98782014,0.00020548,3]
[349049295,1736951453543,-500.0,0.00020548,3]
[349049296,1736951453554,-500.0,0.00020548,3]
[349049297,1736951453564,-500.0,0.00020548,2]
[349049298,1736951453574,-500.0,0.00020548,3]
[349049299,1736951453584,-501.31218835,0.00020548,3]
[349049300,1736951453594,-500.0,0.00020548,3]
[349049301,1736951453608,-500.0,0.00020548,3]
[349049302,1736951453618,-500.0,0.00020548,9]
[349049303,1736951453627,-500.0,0.00020548,3]
[349049304,1736951453637,-500.0,0.00020548,3]
[349049305,1736951453648,-500.0,0.00020548,3]
[349049306,1736951453659,-500.0,0.00020548,3]
[349049307,1736951453669,-502.73923988,0.00020548,3]
[349049308,1736951453679,-500.0,0.00020548,3]
[349049309,1736951453690,-500.0,0.00020548,3]
[349049310,1736951453700,-510.50646297,0.00020548,3]
[349049311,1736951453711,-500.0,0.00020548,3]
[349049312,1736951453721,-500.0,0.00020548,3]
[349049313,1736951453731,-500.0,0.00020548,3]
[349049314,1736951453740,-500.0,0.00020548,3]
[349049315,1736951453751,-500.0,0.00020548,3]
[349049316,1736951453761,-500.0,0.00020548,3]
[349049317,1736951453770,-510.60686834,0.00020548,3]
[349049318,1736951453861,-500.0,0.00020548,3]
[349049319,1736951453872,-500.0,0.00020548,3]
[349049320,1736951453883,-633.13425546,0.00020548,3]
[349049321,1736951453893,-500.0,0.00020548,3]
[349049322,1736951453902,-500.0,0.00020548,3]
[349049323,1736951453912,-500.0,0.00020548,3]
[349049324,1736951453922,-2790.0423106,0.0002055,2]
[349049325,1736951453932,-2790.0423106,0.0002055,2]
[349049326,1736951453942,-2790.0423106,0.0002055,2]
[349049327,1736951453954,-2790.0423106,0.0002055,2]
[349049328,1736951453966,-2790.0423106,0.0002055,2]
[349049329,1736951453976,-2790.0423106,0.0002055,2]
[349049330,1736951453986,-2790.0423106,0.0002055,2]
[349049331,1736951453996,-2790.0423106,0.0002055,2]
[349049332,1736951454006,-2790.0423106,0.0002055,2]
[349049333,1736951454016,-2790.0423106,0.0002055,2]
[349049334,1736951454027,-2790.0423106,0.0002055,2]
[349049335,1736951454038,-2790.0423106,0.0002055,2]
[349049336,1736951454047,-2790.0423106,0.0002055,2]
[349049337,1736951454057,-2790.0423106,0.0002055,2]
[349049338,1736951454067,-2790.0423106,0.0002055,2]
[349049339,1736951454077,-2790.0423106,0.0002055,2]
[349049340,1736951454087,-2790.0423106,0.0002055,2]
[349049341,1736951454096,-2790.0423106,0.0002055,2]
[349049342,1736951454109,-2790.0423106,0.0002055,2]
[349049343,1736951454119,-2790.04,0.0002055,2]
[349049344,1736951454128,-4185.0634659,0.0002055,2]
[349049345,1736951454138,-4185.0634659,0.0002055,2]
[349049346,1736951454149,-4185.0634659,0.0002055,2]
[349049347,1736951454159,-4185.0634659,0.0002055,2]
[349049348,1736951454169,-4185.0634659,0.0002055,2]
[349049349,1736951454178,-4185.0634659,0.0002055,2]
[349049350,1736951454188,-4185.0634659,0.0002055,2]
[349049351,1736951454197,-4185.0634659,0.0002055,2]
[349049352,1736951454207,-4185.0634659,0.0002055,2]
[349049353,1736951454216,-4185.0634659,0.0002055,2]
[349049354,1736951454226,-4185.0634659,0.0002055,2]
[349049355,1736951454235,-4185.0634659,0.0002055,2]
[349049356,1736951454246,-4185.0634659,0.0002055,2]
[349049357,1736951454256,-4185.0634659,0.0002055,2]
[349049358,1736951454265,-4185.0634659,0.0002055,2]
[349049359,1736951454274,-4185.0634659,0.0002055,2]
[349049360,1736951454284,-4185.0634659,0.0002055,2]
[349049361,1736951454293,-4185.0634659,0.0002055,2]
[349049362,1736951454302,-4185.0634659,0.0002055,2]
[349049363,1736951454311,-4185.06,0.0002055,2]
[349049364,1736951454321,-171.71641335,0.0002055,2]
[349049365,1736951454331,-171.71641335,0.0002055,2]
[349049366,1736951454340,-171.71641335,0.0002055,2]
[349049367,1736951454350,-171.71641335,0.0002055,2]
[349049368,1736951454363,-171.71641335,0.0002055,2]
[349049369,1736951454375,-171.71641335,0.0002055,2]
[349049370,1736951454387,-171.71641335,0.0002055,2]
[349049371,1736951454396,-171.71641335,0.0002055,2]
[349049372,1736951454406,-171.71641335,0.0002055,2]
[349049373,1736951454415,-171.71641335,0.0002055,2]
[349049374,1736951454425,-171.71641335,0.0002055,2]
[349049375,1736951454435,-171.71641335,0.0002055,2]
[349049376,1736951454445,-171.71641335,0.0002055,2]
[349049377,1736951454455,-171.71641335,0.0002055,2]
[349049378,1736951454465,-171.71641335,0.0002055,2]
[349049379,1736951454475,-171.71641335,0.0002055,2]
[349049380,1736951454485,-171.71641335,0.0002055,2]
[349049381,1736951454496,-171.71641335,0.0002055,2]
[349049382,1736951454506,-171.71641335,0.0002055,2]
[349049383,1736951454515,-171.71,0.0002055,2]
[349049384,1736951454525,-257.57462002,0.0002055,2]
[349049385,1736951454534,-257.57462002,0.0002055,2]
[349049386,1736951454544,-257.57462002,0.0002055,2]
[349049387,1736951454554,-257.57462002,0.0002055,2]
[349049388,1736951454564,-257.57462002,0.0002055,2]
[349049389,1736951454573,-257.57462002,0.0002055,2]
[349049390,1736951454584,-257.57462002,0.0002055,2]
[349049391,1736951454595,-257.57462002,0.0002055,2]
[349049392,1736951454609,-257.57462002,0.0002055,2]
[349049393,1736951454619,-257.57462002,0.0002055,2]
[349049394,1736951454628,-257.57462002,0.0002055,2]
[349049395,1736951454638,-257.57462002,0.0002055,2]
[349049396,1736951454647,-257.57462002,0.0002055,2]
[349049397,1736951454657,-257.57462002,0.0002055,2]
[349049398,1736951454666,-257.57462002,0.0002055,2]
[349049399,1736951454676,-257.57462002,0.0002055,2]
[349049400,1736951454685,-257.57462002,0.0002055,2]
[349049401,1736951454695,-257.57462002,0.0002055,2]
[349049402,1736951454704,-257.57462002,0.0002055,2]
[349049403,1736951454713,-257.57,0.0002055,2]
[349049404,1736951454723,-173.91650204,0.0002055,2]
[349049405,1736951454732,-173.91,0.0002055,2]
[349049406,1736951454741,-173.91650204,0.0002055,2]
[349049407,1736951454751,-173.91650204,0.0002055,2]
[349049408,1736951454761,-173.91,0.0002055,2]
[349049409,1736951454770,-500.0,0.0002058,3]
[349049410,1736951454780,-500.0,0.0002058,3]
[349049411,1736951454791,-509.7,0.0002058,3]
[349049412,1736951454801,-500.0,0.0002058,3]
[349049413,1736951454811,-613.99,0.0002058,3]
[349049414,1736951454820,-466.8776262,0.0002058,3]
[349049415,1736951454831,-502.98697505,0.0002058,3]
[349049416,1736951454841,-151.0,0.0002058,2]
[349049417,1736951454850,-151.0,0.0002058,2]
[349049418,1736951454863,-151.0,0.0002058,2]
[349049419,1736951454873,-357.763756,0.0002058,2]
[349049420,1736951454883,-357.763756,0.0002058,2]
[349049421,1736951454892,-151.0,0.0002058,2]
[349049422,1736951454901,-151.0,0.0002058,2]
[349049423,1736951454911,-151.0,0.0002058,2]
[349049424,1736951454920,-235.665403,0.0002058,2]
[349049425,1736951454930,-957.66486,0.0002058,2]
[349049426,1736951454939,-957.66486,0.0002058,2]
[349049427,1736951454948,-230.634286,0.0002058,2]
[349049428,1736951454958,-230.634286,0.0002058,2]
[349049429,1736951454968,-500.0,0.00020597,3]
[349049430,1736951454977,-702.65,0.00020597,3]
[349049431,1736951454987,-500.0,0.0002062,3]
[349049432,1736951454997,-1818.62,0.0002062,3]
[349049433,1736951455007,-500.0,0.0002062,3]
[349049434,1736951455017,-1215.74,0.0002062,3]
[349049435,1736951455027,-3079.09,0.0002062,3]
[349049436,1736951455039,-500.0,0.0002062,3]
[349049437,1736951455049,-500.0,0.0002062,3]
[349049438,1736951455059,-500.0,0.0002062,3]